[Event "Gaprindashvili Cup Women I Stage 2020"]
[Site "Online"]
[Date "2020.11.04"]
[Round "7.3"]
[White "Tsotsonava, Elene"]
[Black "Khazhomia, Anuki"]
[Result "1-0"]
[ECO "C27"]
[WhiteElo "1805"]
[BlackElo "1880"]
[Annotator "NA"]
[PlyCount "75"]
[EventDate "2020.11.04"]
[EventType "swiss"]
[SourceTitle "playchess.com"]
[Source "ChessBase"]
[SourceQuality "1"]
[TimeControl "1500+5"]

1. e4 {[%emt 0:00:00]} e5 {[%emt 0:00:04]} 2. Nc3 {[%emt 0:00:08]} Nf6 {[%emt 0:00:09]} 3. Bc4 {[%emt 0:00:04]} Bc5 {[%emt 0:00:16]} 4. d3 {[%emt 0:00:13]} d6 {[%emt 0:00:39]} 5. Na4 {[%emt 0:01:28]} c6 {[%emt 0:07:15]} 6. Nxc5 {[%emt 0:00:17] [#] C27: Vienna Game: 2...Nf6 3 Bc4 Nxe4.} dxc5 $146 {[%emt 0:00:04]} ({Predecessor:} 6... Qa5+ 7. c3 Qxc5 8. Be3 Qa5 9. Nf3 Bg4 10. Qb3 Qc7 11. a4 O-O 12. h3 Bc8 13. O-O {1-0 (69) Bazantova,M (2148)-Pribyl,J (2065) Teplice 2006}) 7. a4 {[%emt 0:00:25]} O-O {[%emt 0:00:25]} 8. Nf3 {[%emt 0:00:43]} Qd6 {[%emt 0:01:32]} 9. O-O {[%emt 0:00:24]} Bg4 {[%emt 0:00:08]} 10. h3 {[%emt 0:00:09]} Be6 {[%emt 0:01:39]} 11. Qe2 {[%emt 0:01:09]} Nbd7 {[%emt 0:01:02]} 12. Bd2 {[%emt 0:00:36]} Rfb8 {[%emt 0:00:26]} 13. Bc3 {[%emt 0:01:13]} b5 {[%emt 0:00:16]} 14. axb5 {[%emt 0:00:03]} cxb5 {[%emt 0:00:04]} 15. Bxe6 {[%emt 0:00:33]} fxe6 {[%emt 0:04:04]} 16. b3 {[%emt 0:00:18]} Qc7 {[%emt 0:01:38]} 17. Ng5 {[%emt 0:01:10]} Nf8 {[%emt 0:01:07]} 18. Qf3 {[%emt 0:01:48]} ({Better is} 18. Ra6 $18) 18... h6 {[%emt 0:00:28] [#]} 19. Qg3 $1 {[%emt 0:00:23]} hxg5 {[%emt 0:00:04]} 20. Bxe5 {[%emt 0:00:03]} Nh5 $2 {[%emt 0:02:57]} (20... Qb6 $16) 21. Bxc7 {[%emt 0:00:24]} Nxg3 {[%emt 0:00:04]} 22. Bxg3 {[%emt 0:00:27]} ({Resist} 22. fxg3 $6 Rc8 $18) 22... Rc8 {[%emt 0:00:19]} 23. Ra5 {[%emt 0:00:45]} a6 {[%emt 0:00:15]} 24. Rfa1 {[%emt 0:00:11]} c4 {[%emt 0:00:12]} 25. bxc4 {[%emt 0:00:35]} bxc4 {[%emt 0:00:03]} 26. Rxa6 {[%emt 0:00:02]} Rxa6 {[%emt 0:00:04]} 27. Rxa6 {[%emt 0:00:01]} cxd3 {[%emt 0:00:06]} 28. cxd3 {[%emt 0:00:02]} Rc1+ {[%emt 0:00:12]} 29. Kh2 {[%emt 0:00:03]} Rd1 {[%emt 0:00:09]} 30. Rd6 {[%emt 0:00:33]} Kf7 $18 {[%emt 0:00:13]} 31. d4 {[%emt 0:00:21]} Ke7 {[%emt 0:00:54]} 32. e5 {[%emt 0:00:40]} Nd7 {[%emt 0:00:26]} 33. h4 {[%emt 0:00:08]} g4 {[%emt 0:00:14]} 34. h5 {[%emt 0:01:04]} Nf8 {[%emt 0:00:14]} 35. Bh4+ {[%emt 0:00:11]} Kf7 {[%emt 0:00:01]} 36. Kg3 {[%emt 0:00:06]} Rg1 {[%emt 0:00:04]} 37. d5 {[%emt 0:00:17]} Rd1 {[%emt 0:00:03]} 38. dxe6+ {[%emt 0:00:03]} 1-0

[Event "Gaprindashvili Cup Women I Stage 2020"]
[Site "Online"]
[Date "2020.11.04"]
[Round "7.4"]
[White "Asatiani, Tamar"]
[Black "Lagazauri, Tamar"]
[Result "0-1"]
[ECO "B47"]
[WhiteElo "1004"]
[BlackElo "1657"]
[Annotator "NA RC"]
[PlyCount "142"]
[EventDate "2020.11.04"]
[EventType "swiss"]
[SourceTitle "playchess.com"]
[Source "ChessBase"]
[SourceQuality "1"]
[TimeControl "1500+5"]

1. e4 {[%emt 0:00:03]} c5 {[%emt 0:00:03]} 2. Nf3 {[%emt 0:00:02]} e6 {[%emt 0:00:02]} 3. d4 {[%emt 0:00:03]} cxd4 {[%emt 0:00:02]} 4. Nxd4 {[%emt 0:00:03]} Nc6 {[%emt 0:00:02]} 5. Nc3 {[%emt 0:00:09]} a6 {[%emt 0:00:04]} 6. Be2 {[%emt 0:00:21]} Qc7 {[%emt 0:00:21]} 7. Nxc6 {[%emt 0:00:25]} bxc6 {[%emt 0:00:26]} 8. O-O {[%emt 0:00:21]} Nf6 {[%emt 0:00:18]} 9. Bf3 {[%emt 0:00:23]} Be7 {[%emt 0:01:47]} 10. Re1 {[%emt 0:00:48]} O-O {[%emt 0:01:54]} 11. e5 {[%emt 0:00:16]} Nd5 {[%emt 0:00:28]} 12. Nxd5 {[%emt 0:00:16]} cxd5 {[%emt 0:00:28]} 13. Bf4 {[%emt 0:00:27]} Bb7 {[%emt 0:00:49]} 14. Rc1 {[%emt 0:00:46]} Qc4 {[%emt 0:04:31]} 15. Bg3 {[%emt 0:01:36]} Bg5 {[%emt 0:00:43]} 16. Be2 {[%emt 0:01:23]} Qc5 {[%emt 0:00:24]} 17. Rb1 {[%emt 0:00:30]} Rfc8 {[%emt 0:01:37]} 18. Bd3 {[%emt 0:00:34]} a5 {[%emt 0:01:28]} 19. Qg4 {[%emt 0:00:23]} Bh6 {[%emt 0:02:04]} 20. Bf4 {[%emt 0:01:01]} Bxf4 {[%emt 0:00:44]} 21. Qxf4 {[%emt 0:00:05]} Ba6 {[%emt 0:00:22]} 22. Rbc1 {[%emt 0:00:49]} Qb4 {[%emt 0:02:18]} 23. Qxb4 {[%emt 0:02:21]} axb4 {[%emt 0:00:03]} 24. Ra1 {[%emt 0:00:50]} Bxd3 {[%emt 0:00:14]} 25. cxd3 {[%emt 0:00:03]} Rc2 {[%emt 0:00:32]} 26. Reb1 {[%emt 0:00:42]} f6 {[%emt 0:00:35]} 27. exf6 {[%emt 0:00:30]} gxf6 {[%emt 0:00:04]} 28. a3 {[%emt 0:00:07]} b3 {[%emt 0:00:12]} 29. a4 {[%emt 0:00:09]} Rd2 {[%emt 0:00:12]} 30. Ra3 {[%emt 0:00:26]} Rxd3 {[%emt 0:01:07]} 31. Kf1 {[%emt 0:00:04]} Rd4 {[%emt 0:01:29]} 32. Rxb3 {[%emt 0:00:22]} Rdxa4 {[%emt 0:00:27]} 33. Rg3+ {[%emt 0:00:06]} Kf7 {[%emt 0:00:04]} 34. b4 {[%emt 0:00:28]} Ra1 {[%emt 0:00:52]} 35. Rgb3 {[%emt 0:00:04]} Rxb1+ {[%emt 0:00:22]} 36. Rxb1 {[%emt 0:00:02]} Ke7 {[%emt 0:00:09]} 37. b5 {[%emt 0:00:02]} Kd6 {[%emt 0:00:08]} 38. Ke2 {[%emt 0:00:12]} Rb8 {[%emt 0:00:04]} 39. Rb3 {[%emt 0:00:11]} Kc5 {[%emt 0:00:37]} 40. Rf3 {[%emt 0:00:09]} f5 {[%emt 0:00:06]} 41. Rh3 {[%emt 0:00:04]} Rh8 {[%emt 0:00:03]} 42. Rb3 {[%emt 0:00:07]} Kc4 {[%emt 0:00:08]} 43. Rb1 {[%emt 0:00:04]} Rb8 {[%emt 0:00:03]} 44. b6 {[%emt 0:00:03]} Kc5 {[%emt 0:00:03]} 45. b7 {[%emt 0:00:05]} Kc6 {[%emt 0:00:02]} 46. Rc1+ {[%emt 0:00:09]} Kxb7 {[%emt 0:00:02]} 47. Rb1+ {[%emt 0:00:10]} Kc7 {[%emt 0:00:02]} 48. Rxb8 {[%emt 0:00:02]} Kxb8 {[%emt 0:00:01]} 49. Kd3 {[%emt 0:00:04]} e5 {[%emt 0:00:06]} 50. f3 {[%emt 0:00:05]} Kc7 {[%emt 0:00:14]} 51. g4 {[%emt 0:00:13]} fxg4 {[%emt 0:00:11]} 52. fxg4 {[%emt 0:00:02]} Kd6 {[%emt 0:00:02]} 53. h4 {[%emt 0:00:04]} Ke6 {[%emt 0:00:02]} 54. g5 {[%emt 0:00:05]} Kf5 {[%emt 0:00:03]} 55. Ke3 {[%emt 0:00:09]} Kg4 {[%emt 0:00:03]} 56. Kd3 {[%emt 0:00:17]} Kxh4 {[%emt 0:00:02]} 57. Ke3 {[%emt 0:00:07]} Kxg5 {[%emt 0:00:01]} 58. Kd3 {[%emt 0:00:02]} h5 {[%emt 0:00:02]} 59. Ke3 {[%emt 0:00:02]} h4 {[%emt 0:00:01]} 60. Kf3 {[%emt 0:00:02]} d4 {[%emt 0:00:02]} 61. Ke2 {[%emt 0:00:06]} Kf4 {[%emt 0:00:02]} 62. Kf2 {[%emt 0:00:07]} h3 {[%emt 0:00:01]} 63. Ke2 {[%emt 0:00:16]} h2 {[%emt 0:00:02]} 64. Kd3 {[%emt 0:00:07]} h1=Q {[%emt 0:00:04]} 65. Kc4 {[%emt 0:00:01]} Qc6+ {[%emt 0:00:04]} 66. Kb3 {[%emt 0:00:05]} d3 {[%emt 0:00:01]} 67. Kb2 {[%emt 0:00:24]} d2 {[%emt 0:00:02]} 68. Ka3 {[%emt 0:00:08]} d1=R {[%emt 0:00:09]} 69. Kb2 {[%emt 0:00:04]} Rd5 {[%emt 0:00:05]} 70. Ka3 {[%emt 0:00:04]} Rb5 {[%emt 0:00:04]} 71. Ka4 {[%emt 0:00:02]} Qa6# {[%emt 0:00:02]} 0-1

[Event "Gaprindashvili Cup Women I Stage 2020"]
[Site "Online"]
[Date "2020.11.04"]
[Round "7.5"]
[White "Antia, Sopia"]
[Black "Dolakidze, Mariam"]
[Result "0-1"]
[ECO "B28"]
[WhiteElo "1594"]
[BlackElo "1416"]
[Annotator "NA RC"]
[PlyCount "104"]
[EventDate "2020.11.04"]
[EventType "swiss"]
[SourceTitle "playchess.com"]
[Source "ChessBase"]
[SourceQuality "1"]
[TimeControl "1500+5"]

1. Nf3 {[%emt 0:00:00]} c5 {[%emt 0:00:04]} 2. e4 {[%emt 0:00:05]} Nc6 {[%emt 0:00:03]} 3. d4 {[%emt 0:01:22]} cxd4 {[%emt 0:01:12]} 4. Nxd4 {[%emt 0:00:04]} a6 {[%emt 0:00:13]} 5. c4 {[%emt 0:00:28]} Qb6 {[%emt 0:00:15]} 6. Nxc6 {[%emt 0:01:45]} bxc6 {[%emt 0:00:03]} 7. Nc3 {[%emt 0:00:49]} d6 {[%emt 0:02:06]} 8. Na4 {[%emt 0:01:24]} Qc7 {[%emt 0:02:18]} 9. Be3 {[%emt 0:00:57]} c5 {[%emt 0:00:33]} 10. Nc3 {[%emt 0:00:57]} Nf6 {[%emt 0:04:26]} 11. Be2 {[%emt 0:00:45]} Bb7 {[%emt 0:00:38]} 12. f3 {[%emt 0:00:25]} g6 {[%emt 0:00:13]} 13. O-O {[%emt 0:00:02]} Bg7 {[%emt 0:00:03]} 14. Qd2 {[%emt 0:01:19]} O-O {[%emt 0:00:39]} 15. Bh6 {[%emt 0:02:20]} Rab8 {[%emt 0:00:42]} 16. Bxg7 {[%emt 0:00:42]} Kxg7 {[%emt 0:00:03]} 17. Bd3 {[%emt 0:01:19]} Bc6 {[%emt 0:01:11]} 18. Qe2 {[%emt 0:01:11]} Qb7 {[%emt 0:00:37]} 19. Rab1 {[%emt 0:00:04]} e5 {[%emt 0:03:03]} 20. Rfd1 {[%emt 0:00:31]} Rfd8 {[%emt 0:00:20]} 21. Rd2 {[%emt 0:00:39]} Nd7 {[%emt 0:01:24]} 22. Bc2 {[%emt 0:00:54]} Nf8 {[%emt 0:00:04]} 23. Qd1 {[%emt 0:00:31]} Qd7 {[%emt 0:00:21]} 24. f4 {[%emt 0:02:45]} f6 {[%emt 0:00:49]} 25. f5 {[%emt 0:00:41]} Qc7 {[%emt 0:03:03]} 26. g4 {[%emt 0:00:57]} g5 {[%emt 0:00:34]} 27. Ba4 {[%emt 0:01:04]} Ba8 {[%emt 0:01:31]} 28. h4 {[%emt 0:01:05]} h6 {[%emt 0:00:02]} 29. hxg5 {[%emt 0:00:04]} hxg5 {[%emt 0:00:03]} 30. Qf3 {[%emt 0:00:27]} Nd7 {[%emt 0:00:29]} 31. Bxd7 {[%emt 0:00:53]} Rxd7 {[%emt 0:00:02]} 32. Rbd1 {[%emt 0:00:16]} Rh8 {[%emt 0:00:06]} 33. Nd5 {[%emt 0:00:27]} Bxd5 {[%emt 0:00:02]} 34. Rxd5 {[%emt 0:00:02]} Rh4 {[%emt 0:00:05]} 35. Kg2 {[%emt 0:00:05]} Qb6 {[%emt 0:00:06]} 36. b3 {[%emt 0:00:04]} Kf8 {[%emt 0:00:11]} 37. Kg3 {[%emt 0:00:09]} Ke7 {[%emt 0:00:10]} 38. Rh1 {[%emt 0:00:16]} Rxh1 {[%emt 0:00:02]} 39. Qxh1 {[%emt 0:00:02]} Rd8 {[%emt 0:00:03]} 40. Qh7+ {[%emt 0:00:11]} Ke8 {[%emt 0:00:02]} 41. Qg6+ {[%emt 0:00:04]} Ke7 {[%emt 0:00:01]} 42. Qg7+ {[%emt 0:00:03]} Ke8 {[%emt 0:00:04]} 43. Qxf6 {[%emt 0:00:02]} Rd7 {[%emt 0:00:03]} 44. Qxg5 {[%emt 0:00:04]} Qb4 {[%emt 0:00:12]} 45. f6 {[%emt 0:00:05]} Qc3+ {[%emt 0:00:02]} 46. Kh4 {[%emt 0:00:02]} Rh7+ {[%emt 0:00:02]} 47. Qh5+ {[%emt 0:00:06]} Rxh5+ {[%emt 0:00:02]} 48. Kxh5 {[%emt 0:00:04]} Qh3+ {[%emt 0:00:03]} 49. Kg5 {[%emt 0:00:03]} Qe3+ {[%emt 0:00:01]} 50. Kf5 {[%emt 0:00:04]} Qf4+ {[%emt 0:00:02]} 51. Kg6 {[%emt 0:00:04]} Qxg4+ {[%emt 0:00:02]} 52. Kh6 {[%emt 0:00:10]} Kf7 {[%emt 0:00:01]} 0-1

[Event "Gaprindashvili Cup Women I Stage 2020"]
[Site "Online"]
[Date "2020.11.04"]
[Round "7.6"]
[White "Zarkua, Anastasia"]
[Black "Mgeladze, Kesaria"]
[Result "1/2-1/2"]
[ECO "E63"]
[WhiteElo "1124"]
[BlackElo "1380"]
[Annotator "NA RC"]
[PlyCount "172"]
[EventDate "2020.11.04"]
[EventType "swiss"]
[SourceTitle "playchess.com"]
[Source "ChessBase"]
[SourceQuality "1"]
[TimeControl "1500+5"]

1. d4 {[%emt 0:00:04]} Nf6 {[%emt 0:00:04]} 2. Nf3 {[%emt 0:00:14]} g6 {[%emt 0:00:09]} 3. c4 {[%emt 0:00:03]} Bg7 {[%emt 0:00:04]} 4. Nc3 {[%emt 0:00:02]} O-O {[%emt 0:00:02]} 5. g3 {[%emt 0:01:59]} d6 {[%emt 0:00:16]} 6. Bg2 {[%emt 0:00:06]} Nc6 {[%emt 0:00:22]} 7. O-O {[%emt 0:00:11]} a6 {[%emt 0:00:12]} 8. b3 {[%emt 0:00:38]} Rb8 {[%emt 0:00:11]} 9. Bb2 {[%emt 0:00:19]} b5 {[%emt 0:00:15]} 10. cxb5 {[%emt 0:02:06]} axb5 {[%emt 0:00:02]} 11. Rc1 {[%emt 0:00:09]} b4 {[%emt 0:00:40]} 12. Nd5 {[%emt 0:02:01]} Nxd5 {[%emt 0:00:44]} 13. Rxc6 {[%emt 0:00:07]} Bb7 {[%emt 0:02:57]} 14. Rc2 {[%emt 0:01:13]} Ra8 {[%emt 0:00:22]} 15. Ba1 {[%emt 0:00:31]} Ra7 {[%emt 0:01:26]} 16. Qd2 {[%emt 0:00:14]} Qd7 {[%emt 0:02:08]} 17. Rfc1 {[%emt 0:00:17]} Ba6 {[%emt 0:00:32]} 18. Ne1 {[%emt 0:02:36]} Nb6 {[%emt 0:05:36]} 19. Qxb4 {[%emt 0:00:38]} Rb8 {[%emt 0:02:46]} 20. Qd2 {[%emt 0:00:23]} d5 {[%emt 0:01:03]} 21. Nd3 {[%emt 0:00:45]} Bxd3 {[%emt 0:00:12]} 22. Qxd3 {[%emt 0:00:20]} Rba8 {[%emt 0:00:12]} 23. Qd2 {[%emt 0:00:14]} e6 {[%emt 0:00:22]} 24. Bc3 {[%emt 0:00:27]} h5 {[%emt 0:01:10]} 25. Bb4 {[%emt 0:01:23]} Kh7 {[%emt 0:01:09]} 26. Bc5 {[%emt 0:00:45]} Ra6 {[%emt 0:00:47]} 27. a3 {[%emt 0:00:44]} Nc8 {[%emt 0:00:25]} 28. Bb4 {[%emt 0:00:46]} R6a7 {[%emt 0:00:08]} 29. Bf1 {[%emt 0:00:36]} Nd6 {[%emt 0:00:22]} 30. Bxd6 {[%emt 0:00:43]} Qxd6 {[%emt 0:00:04]} 31. a4 {[%emt 0:02:42]} Qb6 {[%emt 0:00:24]} 32. e3 {[%emt 0:00:25]} Qxb3 {[%emt 0:00:15]} 33. Bb5 {[%emt 0:00:05]} Qa3 {[%emt 0:00:19]} 34. Rxc7 {[%emt 0:00:39]} Rxc7 {[%emt 0:00:05]} 35. Rxc7 {[%emt 0:00:05]} Qf8 {[%emt 0:00:14]} 36. Qc2 {[%emt 0:00:44]} Kg8 {[%emt 0:00:42]} 37. Kg2 {[%emt 0:00:41]} Bf6 {[%emt 0:00:31]} 38. h4 {[%emt 0:01:19]} Bd8 {[%emt 0:00:18]} 39. Rb7 {[%emt 0:00:08]} Ba5 {[%emt 0:00:08]} 40. Bc6 {[%emt 0:00:12]} Rc8 {[%emt 0:00:19]} 41. Rb5 {[%emt 0:00:21]} Bd8 {[%emt 0:00:18]} 42. Rc5 {[%emt 0:00:04]} Bb6 {[%emt 0:00:05]} 43. Rc3 {[%emt 0:00:07]} Ba5 {[%emt 0:00:02]} 44. Rc5 {[%emt 0:00:06]} Bb4 {[%emt 0:00:02]} 45. Rb5 {[%emt 0:00:15]} Qd6 {[%emt 0:00:03]} 46. Qb3 {[%emt 0:00:14]} Qxc6 {[%emt 0:00:08]} 47. Qxb4 {[%emt 0:00:02]} Qc2 {[%emt 0:00:01]} 48. Rb8 {[%emt 0:00:03]} Qe4+ {[%emt 0:00:02]} 49. Kg1 {[%emt 0:00:04]} Rxb8 {[%emt 0:00:02]} 50. Qxb8+ {[%emt 0:00:03]} Kh7 {[%emt 0:00:01]} 51. a5 {[%emt 0:00:02]} Qc2 {[%emt 0:00:04]} 52. a6 {[%emt 0:00:08]} Qd1+ {[%emt 0:00:12]} 53. Kh2 {[%emt 0:00:04]} Qf1 {[%emt 0:00:05]} 54. Qf4 {[%emt 0:00:03]} Qxa6 {[%emt 0:00:06]} 55. Qxf7+ {[%emt 0:00:02]} Kh6 {[%emt 0:00:01]} 56. Qf4+ {[%emt 0:00:02]} Kh7 {[%emt 0:00:02]} 57. Qe5 {[%emt 0:00:02]} Qc6 {[%emt 0:00:04]} 58. Kg2 {[%emt 0:00:04]} Qb6 {[%emt 0:00:08]} 59. Qf6 {[%emt 0:00:04]} Qc6 {[%emt 0:00:05]} 60. Qf7+ {[%emt 0:00:04]} Kh6 {[%emt 0:00:02]} 61. Qf4+ {[%emt 0:00:04]} Kh7 {[%emt 0:00:01]} 62. Qg5 {[%emt 0:00:03]} Qd6 {[%emt 0:00:09]} 63. Qf4 {[%emt 0:00:03]} Qc6 {[%emt 0:00:03]} 64. Qe5 {[%emt 0:00:06]} Qb6 {[%emt 0:00:04]} 65. Kf3 {[%emt 0:00:09]} Qc6 {[%emt 0:00:15]} 66. Qf4 {[%emt 0:00:10]} Qb6 {[%emt 0:00:07]} 67. Qg5 {[%emt 0:00:03]} Qd6 {[%emt 0:00:05]} 68. Qf6 {[%emt 0:00:05]} Qc6 {[%emt 0:00:09]} 69. Qe5 {[%emt 0:00:04]} Qe8 {[%emt 0:00:06]} 70. Kg2 {[%emt 0:00:08]} Qf7 {[%emt 0:00:06]} 71. f3 {[%emt 0:00:10]} Qe7 {[%emt 0:00:03]} 72. e4 {[%emt 0:00:06]} dxe4 {[%emt 0:00:04]} 73. Qxe4 {[%emt 0:00:04]} Qd6 {[%emt 0:00:06]} 74. Qf4 {[%emt 0:00:09]} Qa6 {[%emt 0:00:07]} 75. Qf7+ {[%emt 0:00:03]} Kh6 {[%emt 0:00:01]} 76. Qf4+ {[%emt 0:00:04]} Kh7 {[%emt 0:00:02]} 77. Qc7+ {[%emt 0:00:02]} Kh6 {[%emt 0:00:04]} 78. Kh3 {[%emt 0:00:04]} Qf1+ {[%emt 0:00:03]} 79. Kh2 {[%emt 0:00:03]} Qf2+ {[%emt 0:00:03]} 80. Kh3 {[%emt 0:00:06]} Qf1+ {[%emt 0:00:07]} 81. Kh2 {[%emt 0:00:03]} Qf2+ {[%emt 0:00:02]} 82. Kh3 {[%emt 0:00:02]} Qf1+ {[%emt 0:00:06]} 83. Kh2 {[%emt 0:00:01]} Qf2+ {[%emt 0:00:02]} 84. Kh3 {[%emt 0:00:02]} Qf1+ {[%emt 0:00:02]} 85. Kh2 {[%emt 0:00:02]} Qf2+ {[%emt 0:00:01]} 86. Kh3 {[%emt 0:00:01]} Qf1+ {[%emt 0:00:01]} 1/2-1/2

[Event "Gaprindashvili Cup Women I Stage 2020"]
[Site "Online"]
[Date "2020.11.04"]
[Round "7.7"]
[White "Abuladze, Natali"]
[Black "Didbaridze, Meri"]
[Result "1/2-1/2"]
[ECO "D37"]
[WhiteElo "1049"]
[BlackElo "1264"]
[Annotator "NA RC"]
[PlyCount "110"]
[EventDate "2020.11.04"]
[EventType "swiss"]
[SourceTitle "playchess.com"]
[Source "ChessBase"]
[SourceQuality "1"]
[TimeControl "1500+5"]

1. d4 {[%emt 0:00:02]} d5 {[%emt 0:02:27]} 2. c4 {[%emt 0:00:03]} e6 {[%emt 0:00:08]} 3. Nf3 {[%emt 0:00:04]} Nf6 {[%emt 0:00:04]} 4. Nc3 {[%emt 0:00:02]} Be7 {[%emt 0:00:07]} 5. Bf4 {[%emt 0:00:04]} c6 {[%emt 0:00:16]} 6. e3 {[%emt 0:00:05]} O-O {[%emt 0:00:02]} 7. c5 {[%emt 0:00:08]} h6 {[%emt 0:00:23]} 8. Bd3 {[%emt 0:00:22]} Nbd7 {[%emt 0:00:24]} 9. O-O {[%emt 0:00:16]} Nh5 {[%emt 0:00:18]} 10. Bg3 {[%emt 0:00:51]} Nxg3 {[%emt 0:00:06]} 11. hxg3 {[%emt 0:00:06]} Qc7 {[%emt 0:00:31]} 12. e4 {[%emt 0:15:17]} dxe4 {[%emt 0:06:47]} 13. Bxe4 {[%emt 0:02:01]} Nf6 {[%emt 0:00:07]} 14. Bc2 {[%emt 0:00:24]} Rd8 {[%emt 0:01:14]} 15. Bb3 {[%emt 0:00:32]} Nd5 {[%emt 0:01:55]} 16. Nxd5 {[%emt 0:02:21]} exd5 {[%emt 0:00:05]} 17. Ne5 {[%emt 0:00:17]} Bf6 {[%emt 0:00:37]} 18. Re1 {[%emt 0:00:13]} Bf5 {[%emt 0:00:22]} 19. Bc2 {[%emt 0:00:22]} Bxc2 {[%emt 0:01:00]} 20. Qxc2 {[%emt 0:00:05]} Re8 {[%emt 0:00:09]} 21. Nf3 {[%emt 0:00:36]} Re7 {[%emt 0:00:33]} 22. Rxe7 {[%emt 0:00:34]} Bxe7 {[%emt 0:00:06]} 23. Re1 {[%emt 0:00:18]} Re8 {[%emt 0:00:46]} 24. Re3 {[%emt 0:00:38]} Qd8 {[%emt 0:00:31]} 25. Qe2 {[%emt 0:00:11]} Kf8 {[%emt 0:00:18]} 26. Ne5 {[%emt 0:00:54]} Bf6 {[%emt 0:00:34]} 27. Nf3 {[%emt 0:00:19]} Rxe3 {[%emt 0:00:04]} 28. Qxe3 {[%emt 0:00:01]} Qe7 {[%emt 0:00:24]} 29. Qxe7+ {[%emt 0:00:02]} Kxe7 {[%emt 0:00:03]} 30. Kf1 {[%emt 0:00:08]} Ke6 {[%emt 0:00:06]} 31. g4 {[%emt 0:00:04]} Bd8 {[%emt 0:00:03]} 32. Ne5 {[%emt 0:00:04]} Bc7 {[%emt 0:00:11]} 33. f4 {[%emt 0:00:02]} Ba5 {[%emt 0:00:19]} 34. Ke2 {[%emt 0:00:06]} g6 {[%emt 0:00:44]} 35. Kd3 {[%emt 0:00:03]} Be1 {[%emt 0:00:11]} 36. Ke2 {[%emt 0:00:06]} Ba5 {[%emt 0:00:29]} 37. a3 {[%emt 0:00:05]} g5 {[%emt 0:00:25]} 38. f5+ {[%emt 0:00:06]} Ke7 {[%emt 0:00:05]} 39. b4 {[%emt 0:00:07]} Bc7 {[%emt 0:00:12]} 40. Kd3 {[%emt 0:00:05]} Kf6 {[%emt 0:00:31]} 41. Nd7+ {[%emt 0:00:12]} Ke7 {[%emt 0:00:02]} 42. Ne5 {[%emt 0:00:01]} f6 {[%emt 0:00:11]} 43. Ng6+ {[%emt 0:00:04]} Kf7 {[%emt 0:00:03]} 44. a4 {[%emt 0:00:05]} Bg3 {[%emt 0:00:21]} 45. b5 {[%emt 0:00:05]} Be1 {[%emt 0:00:22]} 46. Ke2 {[%emt 0:00:05]} Ba5 {[%emt 0:00:05]} 47. Kd3 {[%emt 0:00:03]} Bc7 {[%emt 0:00:46]} 48. Ke2 {[%emt 0:00:08]} Bb8 {[%emt 0:01:21]} 49. Kd3 {[%emt 0:00:06]} Bh2 {[%emt 0:00:26]} 50. Ke2 {[%emt 0:00:05]} Bg1 {[%emt 0:00:10]} 51. Kd3 {[%emt 0:00:02]} Bf2 {[%emt 0:00:04]} 52. Nh8+ {[%emt 0:00:07]} Kg7 {[%emt 0:00:10]} 53. Ng6 {[%emt 0:00:03]} Kf7 {[%emt 0:00:03]} 54. Nh8+ {[%emt 0:00:01]} Kg7 {[%emt 0:00:10]} 55. Ng6 {[%emt 0:00:03]} Kf7 {[%emt 0:00:29]} 1/2-1/2

[Event "Gaprindashvili Cup Women I Stage 2020"]
[Site "Online"]
[Date "2020.11.04"]
[Round "7.9"]
[White "Sichinava, Mariam"]
[Black "Limar, Ana"]
[Result "1-0"]
[ECO "D11"]
[WhiteElo "1516"]
[BlackElo "1312"]
[Annotator "NA RC"]
[PlyCount "105"]
[EventDate "2020.11.04"]
[EventType "swiss"]
[SourceTitle "playchess.com"]
[Source "ChessBase"]
[SourceQuality "1"]
[TimeControl "1500+5"]

1. Nf3 {[%emt 0:00:02]} d5 {[%emt 0:00:06]} 2. g3 {[%emt 0:00:01]} Bf5 {[%emt 0:00:12]} 3. Bg2 {[%emt 0:00:03]} Nf6 {[%emt 0:00:13]} 4. c4 {[%emt 0:00:02]} e6 {[%emt 0:00:12]} 5. O-O {[%emt 0:00:37]} Be7 {[%emt 0:00:45]} 6. d4 {[%emt 0:00:13]} c6 {[%emt 0:00:40]} 7. Qb3 {[%emt 0:00:14]} Qb6 {[%emt 0:00:20]} 8. Nc3 {[%emt 0:00:04]} O-O {[%emt 0:00:17]} 9. Bf4 {[%emt 0:01:22]} Nbd7 {[%emt 0:02:25]} 10. Qxb6 {[%emt 0:01:58]} axb6 {[%emt 0:00:07]} 11. Nh4 {[%emt 0:01:16]} dxc4 {[%emt 0:04:07]} 12. Nxf5 {[%emt 0:01:08]} exf5 {[%emt 0:00:13]} 13. Rfc1 {[%emt 0:01:05]} b5 {[%emt 0:02:19]} 14. a4 {[%emt 0:00:06]} b4 {[%emt 0:01:13]} 15. Nd1 {[%emt 0:00:12]} Nd5 {[%emt 0:00:47]} 16. Bh3 {[%emt 0:04:30]} Nxf4 {[%emt 0:00:28]} 17. gxf4 {[%emt 0:00:04]} g6 {[%emt 0:00:07]} 18. e4 {[%emt 0:02:24]} Rfd8 {[%emt 0:02:50]} 19. exf5 {[%emt 0:01:12]} gxf5 {[%emt 0:00:49]} 20. Bxf5 {[%emt 0:00:36]} Bf6 {[%emt 0:00:21]} 21. Rxc4 {[%emt 0:00:15]} Nb6 {[%emt 0:01:30]} 22. Rxb4 {[%emt 0:00:10]} Bxd4 {[%emt 0:00:16]} 23. a5 {[%emt 0:00:21]} Bc5 {[%emt 0:00:22]} 24. Rb3 {[%emt 0:00:35]} Rd4 {[%emt 0:02:11]} 25. Rg3+ {[%emt 0:04:43]} Kh8 {[%emt 0:01:37]} 26. Rh3 {[%emt 0:00:49]} Rxf4 {[%emt 0:00:44]} 27. Rxh7+ {[%emt 0:00:18]} Kg8 {[%emt 0:00:04]} 28. Rh5 {[%emt 0:00:53]} Nc4 {[%emt 0:01:16]} 29. Nc3 {[%emt 0:01:55]} Rxf2 {[%emt 0:00:36]} 30. Kh1 {[%emt 0:00:03]} Rxb2 {[%emt 0:00:06]} 31. Ne4 {[%emt 0:00:06]} Be7 {[%emt 0:00:04]} 32. Rg1+ {[%emt 0:00:04]} Bg5 {[%emt 0:00:14]} 33. Rgxg5+ {[%emt 0:00:03]} Kf8 {[%emt 0:00:02]} 34. Rh8+ {[%emt 0:00:01]} Ke7 {[%emt 0:00:02]} 35. Rxa8 {[%emt 0:00:02]} Rb1+ {[%emt 0:00:07]} 36. Kg2 {[%emt 0:00:02]} Ne3+ {[%emt 0:00:02]} 37. Kf3 {[%emt 0:00:04]} Nxf5 {[%emt 0:00:02]} 38. Rxf5 {[%emt 0:00:01]} Rf1+ {[%emt 0:00:10]} 39. Kg4 {[%emt 0:00:02]} Rg1+ {[%emt 0:00:01]} 40. Ng3 {[%emt 0:00:02]} Ra1 {[%emt 0:00:15]} 41. Ra7 {[%emt 0:00:03]} Ra4+ {[%emt 0:00:02]} 42. Kg5 {[%emt 0:00:03]} Rb4 {[%emt 0:00:02]} 43. a6 {[%emt 0:00:03]} Kd6 {[%emt 0:00:14]} 44. Rxb7 {[%emt 0:00:05]} Rxb7 {[%emt 0:00:04]} 45. axb7 {[%emt 0:00:01]} Kc7 {[%emt 0:00:01]} 46. Rxf7+ {[%emt 0:00:02]} Kb8 {[%emt 0:00:03]} 47. h4 {[%emt 0:00:01]} Ka7 {[%emt 0:00:02]} 48. h5 {[%emt 0:00:02]} Kb8 {[%emt 0:00:02]} 49. h6 {[%emt 0:00:02]} Ka7 {[%emt 0:00:02]} 50. h7 {[%emt 0:00:01]} Kb8 {[%emt 0:00:02]} 51. h8=Q+ {[%emt 0:00:03]} Ka7 {[%emt 0:00:02]} 52. b8=Q+ {[%emt 0:00:02]} Ka6 {[%emt 0:00:02]} 53. Ra7# {[%emt 0:00:02]} 1-0